[Event "Live Chess"]
[Site "Chess.com"]
[Date "2023.05.20"]
[Round "-"]
[White "ramses-IIG"]
[Black "LiamClery2020"]
[Result "0-1"]
[WhiteElo "773"]
[BlackElo "2081"]
[TimeControl "300"]
[EndTime "10:37:03 PDT"]
[Termination "LiamClery2020 won by resignation"]

1. e4 {[%clk 0:04:58.2]} 1... Nf6 {[%clk 0:04:59.4]} 2. Nc3 {[%clk 0:04:54.3]}
2... e5 {[%clk 0:04:58.5]} 3. Nf3 {[%clk 0:04:51.1]} 3... Nc6 {[%clk 0:04:55.3]}
4. Bb5 {[%clk 0:04:48.8]} 4... Bb4 {[%clk 0:04:52]} 5. Qe2 {[%clk 0:04:39.7]}
5... O-O {[%clk 0:04:50.1]} 6. Bxc6 {[%clk 0:04:35.4]} 6... bxc6 {[%clk
0:04:49.3]} 7. Nxe5 {[%clk 0:04:31.4]} 7... Re8 {[%clk 0:04:48.1]} 8. d4 {[%clk
0:04:17.5]} 8... Bxc3+ {[%clk 0:04:45.9]} 9. bxc3 {[%clk 0:04:13.5]} 9... c5
{[%clk 0:04:44.7]} 10. O-O {[%clk 0:04:01.7]} 10... d6 {[%clk 0:04:43.6]} 11.
Nc6 {[%clk 0:03:58.6]} 11... Qd7 {[%clk 0:04:42]} 12. d5 {[%clk 0:03:52.1]}
12... Nxd5 {[%clk 0:04:41.2]} 13. Qb5 {[%clk 0:03:40.2]} 13... Nxc3 {[%clk
0:04:37.4]} 14. Qc4 {[%clk 0:03:34.4]} 14... Nxe4 {[%clk 0:04:31.9]} 15. Na5
{[%clk 0:03:23.4]} 15... d5 {[%clk 0:04:28.9]} 16. Qd3 {[%clk 0:03:12.7]} 16...
c4 {[%clk 0:04:20.6]} 17. Qd4 {[%clk 0:03:11.7]} 17... Qb5 {[%clk 0:04:18.3]}
18. Bb2 {[%clk 0:03:04.4]} 18... f6 {[%clk 0:04:17.1]} 19. Bc3 {[%clk
0:02:36.4]} 19... Nxc3 {[%clk 0:04:12.8]} 20. Qxc3 {[%clk 0:02:36.3]} 20... Bf5
{[%clk 0:04:11.9]} 21. Rfc1 {[%clk 0:02:31.8]} 21... d4 {[%clk 0:04:08.4]} 22.
Qa3 {[%clk 0:02:22.5]} 22... Rab8 {[%clk 0:04:01.4]} 23. Rab1 {[%clk 0:02:16.5]}
23... Qxb1 {[%clk 0:04:00]} 24. Rxb1 {[%clk 0:02:14.2]} 24... Rxb1+ {[%clk
0:03:59.9]} 0-1

[Event "Live Chess"]
[Site "Chess.com"]
[Date "2023.05.20"]
[Round "-"]
[White "wadsy27"]
[Black "Pablo_dmp"]
[Result "1-0"]
[WhiteElo "2587"]
[BlackElo "1871"]
[TimeControl "300"]
[EndTime "10:37:08 PDT"]
[Termination "wadsy27 won by resignation"]

1. d4 {[%clk 0:04:58.3]} 1... d5 {[%clk 0:04:58.2]} 2. Bf4 {[%clk 0:04:57.3]}
2... Nf6 {[%clk 0:04:53.6]} 3. e3 {[%clk 0:04:56.3]} 3... Bf5 {[%clk 0:04:50.9]}
4. Nd2 {[%clk 0:04:51.3]} 4... e6 {[%clk 0:04:44.2]} 5. Ngf3 {[%clk 0:04:50.3]}
5... c5 {[%clk 0:04:41.1]} 6. c3 {[%clk 0:04:48.8]} 6... Nc6 {[%clk 0:04:37.9]}
7. Nh4 {[%clk 0:04:46.6]} 7... Bd6 {[%clk 0:04:25.7]} 8. Nxf5 {[%clk 0:04:43.5]}
8... exf5 {[%clk 0:04:25.6]} 9. Bxd6 {[%clk 0:04:42.4]} 9... Qxd6 {[%clk
0:04:25.5]} 10. dxc5 {[%clk 0:04:41.4]} 10... Qxc5 {[%clk 0:04:25.4]} 11. Nb3
{[%clk 0:04:40.2]} 11... Qe7 {[%clk 0:04:11.6]} 12. Nd4 {[%clk 0:04:36.9]} 12...
Nxd4 {[%clk 0:04:01.5]} 13. Qxd4 {[%clk 0:04:36.8]} 13... O-O {[%clk 0:03:51.8]}
14. Bd3 {[%clk 0:04:35.6]} 14... g6 {[%clk 0:03:47.7]} 15. O-O {[%clk
0:04:34.2]} 15... Rfe8 {[%clk 0:03:46]} 16. a4 {[%clk 0:04:31.9]} 16... Qe5
{[%clk 0:03:44.8]} 17. a5 {[%clk 0:04:30.2]} 17... Qxd4 {[%clk 0:03:38.2]} 18.
cxd4 {[%clk 0:04:30.1]} 18... a6 {[%clk 0:03:27.1]} 19. Rfc1 {[%clk 0:04:28.9]}
19... Re7 {[%clk 0:03:24.6]} 20. Rc2 {[%clk 0:04:20.9]} 20... Rd8 {[%clk
0:03:21.7]} 21. Rac1 {[%clk 0:04:20]} 21... Rdd7 {[%clk 0:03:20.3]} 22. g3
{[%clk 0:04:17.2]} 22... Kg7 {[%clk 0:03:16.3]} 23. Kf1 {[%clk 0:04:13.8]} 23...
Ne8 {[%clk 0:03:10.9]} 24. Rc5 {[%clk 0:04:04.8]} 24... Nf6 {[%clk 0:03:04.6]}
25. Rc8 {[%clk 0:03:44.1]} 25... Re8 {[%clk 0:02:58.2]} 26. Ke2 {[%clk
0:03:35.5]} 26... h5 {[%clk 0:02:31]} 27. Rxe8 {[%clk 0:03:18.2]} 27... Nxe8
{[%clk 0:02:30.9]} 28. Rc5 {[%clk 0:03:14]} 28... Nf6 {[%clk 0:02:28.9]} 29. Bc2
{[%clk 0:03:12.4]} 29... Ne4 {[%clk 0:02:27.2]} 30. Bxe4 {[%clk 0:03:08.3]}
30... fxe4 {[%clk 0:02:06]} 31. Kd2 {[%clk 0:03:02.5]} 31... Kf6 {[%clk
0:01:59.2]} 32. Kc3 {[%clk 0:02:58.7]} 32... Ke7 {[%clk 0:01:54.2]} 33. Kb4
{[%clk 0:02:47.2]} 33... Kd6 {[%clk 0:01:51.1]} 34. Rc8 {[%clk 0:02:41.2]} 34...
Ke6 {[%clk 0:01:44.2]} 35. Kc5 {[%clk 0:02:35.7]} 35... Kf5 {[%clk 0:01:39.3]}
36. h3 {[%clk 0:02:31.4]} 36... g5 {[%clk 0:01:35.3]} 37. b4 {[%clk 0:02:27.9]}
37... g4 {[%clk 0:01:27.8]} 38. h4 {[%clk 0:02:26.1]} 38... Ke6 {[%clk
0:01:23.1]} 39. Re8+ {[%clk 0:02:15.6]} 39... Kf6 {[%clk 0:01:20.1]} 40. Rc8
{[%clk 0:02:13.8]} 40... Ke6 {[%clk 0:01:17.7]} 41. Kb6 {[%clk 0:02:12.5]} 41...
Kd6 {[%clk 0:01:13.7]} 42. Rh8 {[%clk 0:02:09.2]} 42... Rc7 {[%clk 0:01:04]} 43.
Rh6+ {[%clk 0:02:04.5]} 43... Kd7 {[%clk 0:01:03.7]} 44. Rxh5 {[%clk 0:02:01.2]}
44... Rc6+ {[%clk 0:01:00.1]} 45. Kxb7 {[%clk 0:01:59.4]} 45... Rc4 {[%clk
0:00:57.2]} 46. Rxd5+ {[%clk 0:01:57.6]} 46... Ke6 {[%clk 0:00:55.3]} 47. Re5+
{[%clk 0:01:57]} 47... Kd6 {[%clk 0:00:52]} 48. b5 {[%clk 0:01:56.5]} 48... axb5
{[%clk 0:00:44.4]} 49. a6 {[%clk 0:01:54.3]} 49... Rc2 {[%clk 0:00:44.3]} 50. a7
{[%clk 0:01:53]} 50... Rxf2 {[%clk 0:00:40.8]} 51. a8=Q {[%clk 0:01:51.8]} 1-0

[Event "Live Chess"]
[Site "Chess.com"]
[Date "2023.05.20"]
[Round "-"]
[White "Fazer180"]
[Black "matt1979"]
[Result "1-0"]
[WhiteElo "1715"]
[BlackElo "1457"]
[TimeControl "300"]
[EndTime "10:37:09 PDT"]
[Termination "Fazer180 won by resignation"]

1. e4 {[%clk 0:04:58.9]} 1... g6 {[%clk 0:04:58.1]} 2. d4 {[%clk 0:04:57]} 2...
Bg7 {[%clk 0:04:55.7]} 3. Nf3 {[%clk 0:04:56.7]} 3... b6 {[%clk 0:04:53.4]} 4.
Nc3 {[%clk 0:04:56.1]} 4... Bb7 {[%clk 0:04:52.2]} 5. Bf4 {[%clk 0:04:54.6]}
5... d6 {[%clk 0:04:49.7]} 6. Bc4 {[%clk 0:04:53.7]} 6... e6 {[%clk 0:04:48.3]}
7. e5 {[%clk 0:04:49.9]} 7... d5 {[%clk 0:04:46.7]} 8. Be2 {[%clk 0:04:40]} 8...
Nd7 {[%clk 0:04:43.5]} 9. O-O {[%clk 0:04:35]} 9... Ne7 {[%clk 0:04:39.7]} 10.
Bg5 {[%clk 0:04:26.3]} 10... h6 {[%clk 0:04:37.7]} 11. Bxe7 {[%clk 0:04:23.2]}
11... Qxe7 {[%clk 0:04:35.8]} 12. Nb5 {[%clk 0:04:17.5]} 12... Nb8 {[%clk
0:04:26.3]} 13. c4 {[%clk 0:04:07.9]} 13... a6 {[%clk 0:04:24.9]} 14. Na3 {[%clk
0:04:05.4]} 14... Nd7 {[%clk 0:04:12.7]} 15. Qc2 {[%clk 0:03:55.2]} 15... Rc8
{[%clk 0:04:04.8]} 16. cxd5 {[%clk 0:03:49.7]} 16... Bxd5 {[%clk 0:03:59.7]} 17.
Bxa6 {[%clk 0:03:48.3]} 17... Ra8 {[%clk 0:03:51.2]} 18. Bb5 {[%clk 0:03:42.5]}
18... Qd8 {[%clk 0:03:15.5]} 19. Rfc1 {[%clk 0:03:28.2]} 19... Ra7 {[%clk
0:03:12.4]} 20. Bc6 {[%clk 0:03:25.2]} 20... Bxf3 {[%clk 0:03:08]} 21. Bxf3
{[%clk 0:03:23.4]} 21... O-O {[%clk 0:03:01.6]} 22. Nb5 {[%clk 0:03:20.6]} 22...
Rb7 {[%clk 0:02:56.2]} 23. Bxb7 {[%clk 0:03:18.8]} 1-0

[Event "Live Chess"]
[Site "Chess.com"]
[Date "2023.05.20"]
[Round "-"]
[White "profpirate4"]
[Black "LiamBellwood"]
[Result "0-1"]
[WhiteElo "1018"]
[BlackElo "2076"]
[TimeControl "300"]
[EndTime "10:37:10 PDT"]
[Termination "LiamBellwood won by checkmate"]

1. d4 {[%clk 0:04:58.3]} 1... e6 {[%clk 0:04:59.9]} 2. c4 {[%clk 0:04:57]} 2...
f5 {[%clk 0:04:59.2]} 3. Nc3 {[%clk 0:04:54.9]} 3... Nf6 {[%clk 0:04:58.9]} 4.
f3 {[%clk 0:04:46.2]} 4... Bb4 {[%clk 0:04:54.4]} 5. Qc2 {[%clk 0:04:42.7]} 5...
O-O {[%clk 0:04:52.2]} 6. a3 {[%clk 0:04:41.7]} 6... Bxc3+ {[%clk 0:04:51.3]} 7.
bxc3 {[%clk 0:04:40.7]} 7... c5 {[%clk 0:04:33.7]} 8. e3 {[%clk 0:04:37.5]} 8...
Nc6 {[%clk 0:04:30.4]} 9. Ne2 {[%clk 0:04:19]} 9... d5 {[%clk 0:04:29.4]} 10.
cxd5 {[%clk 0:04:15.1]} 10... exd5 {[%clk 0:04:29.3]} 11. g3 {[%clk 0:04:06.9]}
11... cxd4 {[%clk 0:04:23.7]} 12. cxd4 {[%clk 0:04:03.8]} 12... Re8 {[%clk
0:04:21.6]} 13. Bg2 {[%clk 0:04:00]} 13... Na5 {[%clk 0:04:11.4]} 14. O-O {[%clk
0:03:43.4]} 14... Nc4 {[%clk 0:04:08.1]} 15. Qd3 {[%clk 0:03:24.7]} 15... Qe7
{[%clk 0:04:02.5]} 16. e4 {[%clk 0:03:11.7]} 16... fxe4 {[%clk 0:04:00.3]} 17.
fxe4 {[%clk 0:03:10.6]} 17... Nxe4 {[%clk 0:03:56.4]} 18. Re1 {[%clk 0:03:02.7]}
18... Nf6 {[%clk 0:03:35.8]} 19. Bf4 {[%clk 0:02:54.8]} 19... Nd6 {[%clk
0:03:12.2]} 20. Be5 {[%clk 0:02:50.1]} 20... Nde4 {[%clk 0:03:07.2]} 21. Nf4
{[%clk 0:02:40.8]} 21... Be6 {[%clk 0:02:48.4]} 22. Rac1 {[%clk 0:02:34.2]}
22... Rac8 {[%clk 0:02:45.5]} 23. Rxc8 {[%clk 0:02:32.4]} 23... Rxc8 {[%clk
0:02:45.4]} 24. Nxe6 {[%clk 0:02:17.4]} 24... Qxe6 {[%clk 0:02:42]} 25. Qb5
{[%clk 0:02:02.4]} 25... Qc6 {[%clk 0:02:32.2]} 26. Qb2 {[%clk 0:01:57.3]} 26...
Qc2 {[%clk 0:02:27]} 27. Qxb7 {[%clk 0:01:52.2]} 27... Qf2+ {[%clk 0:02:25.6]}
28. Kh1 {[%clk 0:01:48.2]} 28... Qxe1+ {[%clk 0:02:25.5]} 29. Bf1 {[%clk
0:01:45]} 29... Qxf1# {[%clk 0:02:25.4]} 0-1

[Event "Live Chess"]
[Site "Chess.com"]
[Date "2023.05.20"]
[Round "-"]
[White "MaximKhimchenko"]
[Black "NatashaRegan"]
[Result "0-1"]
[WhiteElo "1345"]
[BlackElo "1886"]
[TimeControl "300"]
[EndTime "10:37:11 PDT"]
[Termination "NatashaRegan won by resignation"]

1. e4 {[%clk 0:04:47.8]} 1... Nf6 {[%clk 0:04:46.3]} 2. Nf3 {[%clk 0:04:47.6]}
2... Nxe4 {[%clk 0:04:42.4]} 3. Bd3 {[%clk 0:04:36]} 3... d5 {[%clk 0:04:39.7]}
4. O-O {[%clk 0:04:32.3]} 4... Bg4 {[%clk 0:04:33]} 5. Re1 {[%clk 0:04:26.2]}
5... Ng5 {[%clk 0:04:18.3]} 6. h3 {[%clk 0:04:22.4]} 6... Bxf3 {[%clk
0:04:15.1]} 7. gxf3 {[%clk 0:04:20]} 7... Nxh3+ {[%clk 0:04:11.5]} 8. Kg2 {[%clk
0:04:19]} 8... Nf4+ {[%clk 0:04:10]} 9. Kf1 {[%clk 0:04:18.2]} 9... e6 {[%clk
0:04:06.7]} 10. Nc3 {[%clk 0:04:10.9]} 10... Qh4 {[%clk 0:04:04.3]} 11. Kg1
{[%clk 0:04:03.3]} 11... Bd6 {[%clk 0:03:58.5]} 0-1

[Event "Live Chess"]
[Site "Chess.com"]
[Date "2023.05.20"]
[Round "-"]
[White "bedsdrout"]
[Black "Prijmak"]
[Result "0-1"]
[WhiteElo "417"]
[BlackElo "998"]
[TimeControl "300"]
[EndTime "10:37:12 PDT"]
[Termination "Prijmak won by checkmate"]

1. e4 {[%clk 0:04:54.4]} 1... e5 {[%clk 0:04:58.2]} 2. Bc4 {[%clk 0:04:53.2]}
2... Nc6 {[%clk 0:04:56.4]} 3. Qh5 {[%clk 0:04:50.5]} 3... Qe7 {[%clk
0:04:53.2]} 4. Nc3 {[%clk 0:04:42.4]} 4... Nf6 {[%clk 0:04:50.6]} 5. Qh4 {[%clk
0:04:32.1]} 5... Nd4 {[%clk 0:04:45.6]} 6. Nd5 {[%clk 0:04:29.3]} 6... Nxd5
{[%clk 0:04:26.5]} 7. Bxd5 {[%clk 0:04:23.6]} 7... Nxc2+ {[%clk 0:04:24.2]} 8.
Kd1 {[%clk 0:04:17.6]} 8... Qxh4 {[%clk 0:04:20.6]} 9. Nf3 {[%clk 0:04:12.9]}
9... Qe7 {[%clk 0:04:16]} 10. Kxc2 {[%clk 0:04:05.9]} 10... c6 {[%clk
0:04:14.5]} 11. Bb3 {[%clk 0:04:03]} 11... a5 {[%clk 0:04:12.2]} 12. d3 {[%clk
0:04:00.3]} 12... a4 {[%clk 0:04:10]} 13. Bxa4 {[%clk 0:03:57.6]} 13... Rxa4
{[%clk 0:04:08]} 14. Bg5 {[%clk 0:03:56.2]} 14... Qc5+ {[%clk 0:04:05.5]} 15.
Kb3 {[%clk 0:03:51.8]} 15... Rb4+ {[%clk 0:04:02.9]} 16. Ka3 {[%clk 0:03:44.6]}
16... Rxe4+ {[%clk 0:03:53.2]} 17. Kb3 {[%clk 0:03:40.9]} 17... Rb4+ {[%clk
0:03:49.5]} 18. Ka3 {[%clk 0:03:35.2]} 18... Rb5+ {[%clk 0:03:47.7]} 19. Ka4
{[%clk 0:03:30.9]} 19... Qb4# {[%clk 0:03:45.9]} 0-1

[Event "Live Chess"]
[Site "Chess.com"]
[Date "2023.05.20"]
[Round "-"]
[White "mliszewski"]
[Black "PiotrD11"]
[Result "1-0"]
[WhiteElo "1898"]
[BlackElo "1330"]
[TimeControl "300"]
[EndTime "10:37:14 PDT"]
[Termination "mliszewski won by checkmate"]

1. d4 {[%clk 0:04:56.1]} 1... d5 {[%clk 0:04:59.4]} 2. Bf4 {[%clk 0:04:53.8]}
2... Nf6 {[%clk 0:04:57.9]} 3. e3 {[%clk 0:04:51.7]} 3... Bf5 {[%clk 0:04:56.7]}
4. c4 {[%clk 0:04:49.9]} 4... e6 {[%clk 0:04:54.8]} 5. Nc3 {[%clk 0:04:49]} 5...
Be7 {[%clk 0:04:48.1]} 6. Nf3 {[%clk 0:04:46.1]} 6... O-O {[%clk 0:04:43.1]} 7.
Qb3 {[%clk 0:04:43.8]} 7... b6 {[%clk 0:04:18]} 8. Nh4 {[%clk 0:04:41.3]} 8...
Nc6 {[%clk 0:03:54.4]} 9. Nxf5 {[%clk 0:04:39.6]} 9... exf5 {[%clk 0:03:53.6]}
10. cxd5 {[%clk 0:04:38.6]} 10... Na5 {[%clk 0:03:51.1]} 11. Qb5 {[%clk
0:04:35]} 11... a6 {[%clk 0:03:45.2]} 12. Qd3 {[%clk 0:04:26.9]} 12... Nxd5
{[%clk 0:03:40.2]} 13. Qxf5 {[%clk 0:04:23.9]} 13... Nxc3 {[%clk 0:03:35.9]} 14.
bxc3 {[%clk 0:04:22.9]} 14... Bd6 {[%clk 0:03:22.8]} 15. Bd3 {[%clk 0:04:21]}
15... Bxf4 {[%clk 0:03:21.1]} 16. Qxh7# {[%clk 0:04:19.7]} 1-0

[Event "Live Chess"]
[Site "Chess.com"]
[Date "2023.05.20"]
[Round "-"]
[White "tpm07"]
[Black "kevinmilleruk"]
[Result "0-1"]
[WhiteElo "1971"]
[BlackElo "1117"]
[TimeControl "300"]
[EndTime "10:37:21 PDT"]
[Termination "kevinmilleruk won by resignation"]

1. e4 {[%clk 0:04:56.2]} 1... e5 {[%clk 0:04:58.8]} 2. Nf3 {[%clk 0:04:55.3]}
2... Nc6 {[%clk 0:04:57.1]} 3. Bb5 {[%clk 0:04:52.6]} 3... Bc5 {[%clk
0:04:55.5]} 4. O-O {[%clk 0:04:50.2]} 4... Nf6 {[%clk 0:04:54.4]} 5. Nxe5 {[%clk
0:04:45.5]} 5... Nxe5 {[%clk 0:04:49.8]} 6. d4 {[%clk 0:04:44.2]} 6... Nf3+
{[%clk 0:04:34.3]} 7. gxf3 {[%clk 0:04:31.1]} 7... Bb6 {[%clk 0:04:26.4]} 8. Kh1
{[%clk 0:04:27]} 8... O-O {[%clk 0:04:23.2]} 9. c4 {[%clk 0:04:25.6]} 9... a6
{[%clk 0:04:17.7]} 10. Ba4 {[%clk 0:04:23.9]} 10... d6 {[%clk 0:04:11.8]} 11. b4
{[%clk 0:04:22.2]} 11... c5 {[%clk 0:04:03.7]} 12. d5 {[%clk 0:04:18.4]} 12...
cxb4 {[%clk 0:04:01.5]} 13. Bg5 {[%clk 0:04:15.4]} 13... a5 {[%clk 0:03:47.5]}
14. Nd2 {[%clk 0:04:06.6]} 14... Bd7 {[%clk 0:03:37.4]} 15. Rg1 {[%clk
0:04:02.9]} 15... Bxa4 {[%clk 0:03:34]} 16. Qxa4 {[%clk 0:04:02.8]} 16... Bxf2
{[%clk 0:03:30.1]} 17. Rg2 {[%clk 0:03:58.8]} 17... Bd4 {[%clk 0:03:27.8]} 18.
Nb3 {[%clk 0:03:55.2]} 18... Bc3 {[%clk 0:03:24.3]} 19. Rag1 {[%clk 0:03:50.3]}
19... h6 {[%clk 0:03:14.6]} 20. Bxh6 {[%clk 0:03:48]} 20... Nh5 {[%clk
0:03:04.6]} 21. Bxg7 {[%clk 0:03:43.5]} 21... Nxg7 {[%clk 0:03:01.1]} 22. Rxg7+
{[%clk 0:03:42.6]} 22... Bxg7 {[%clk 0:02:59.3]} 23. Qb5 {[%clk 0:03:35.6]}
23... Qf6 {[%clk 0:02:56.7]} 24. Rg3 {[%clk 0:03:31.5]} 24... a4 {[%clk
0:02:49.1]} 25. Nd2 {[%clk 0:03:27.4]} 25... Qa1+ {[%clk 0:02:45.1]} 26. Kg2
{[%clk 0:03:25.9]} 26... Qxa2 {[%clk 0:02:41.3]} 27. Kh3 {[%clk 0:03:24.3]}
27... Qxd2 {[%clk 0:02:37.3]} 28. Qd7 {[%clk 0:03:23]} 28... Qh6+ {[%clk
0:02:32.3]} 29. Kg2 {[%clk 0:03:18.4]} 29... a3 {[%clk 0:02:25.7]} 30. Qf5
{[%clk 0:03:17.5]} 30... a2 {[%clk 0:02:21.4]} 31. Rh3 {[%clk 0:03:15.6]} 31...
Qg6+ {[%clk 0:02:17.8]} 0-1

[Event "Live Chess"]
[Site "Chess.com"]
[Date "2023.05.20"]
[Round "-"]
[White "misha464"]
[Black "Reggie016"]
[Result "0-1"]
[WhiteElo "758"]
[BlackElo "1078"]
[TimeControl "300"]
[EndTime "10:37:27 PDT"]
[Termination "Reggie016 won by resignation"]

1. e4 {[%clk 0:04:59.3]} 1... e6 {[%clk 0:04:59.3]} 2. Qe2 {[%clk 0:04:58.2]}
2... Nc6 {[%clk 0:04:51.6]} 3. Nc3 {[%clk 0:04:56.9]} 3... b6 {[%clk 0:04:45.1]}
4. d4 {[%clk 0:04:56.3]} 4... Bb7 {[%clk 0:04:44.1]} 5. d5 {[%clk 0:04:55.1]}
5... Nd4 {[%clk 0:04:40.4]} 6. Qc4 {[%clk 0:04:50.1]} 6... Nxc2+ {[%clk
0:04:36.4]} 7. Kd2 {[%clk 0:04:48.2]} 7... Nxa1 {[%clk 0:04:35.2]} 8. dxe6
{[%clk 0:04:42.6]} 8... dxe6+ {[%clk 0:04:34.3]} 9. Ke3 {[%clk 0:04:40.5]} 9...
Bc5+ {[%clk 0:04:30.2]} 10. Kf3 {[%clk 0:04:37.5]} 10... Qf6+ {[%clk 0:04:22.3]}
11. Ke2 {[%clk 0:04:35.5]} 0-1

[Event "Live Chess"]
[Site "Chess.com"]
[Date "2023.05.20"]
[Round "-"]
[White "mach247"]
[Black "stevefairhurst"]
[Result "0-1"]
[WhiteElo "1309"]
[BlackElo "573"]
[TimeControl "300"]
[EndTime "10:37:36 PDT"]
[Termination "stevefairhurst won on time"]

1. e4 {[%clk 0:04:59.5]} 1... e5 {[%clk 0:04:58.7]} 2. Nf3 {[%clk 0:04:58.6]}
2... Nc6 {[%clk 0:04:57.4]} 3. Bc4 {[%clk 0:04:56.8]} 3... Nf6 {[%clk
0:04:54.8]} 4. d3 {[%clk 0:04:55.9]} 4... Bb4+ {[%clk 0:04:48.6]} 5. c3 {[%clk
0:04:54.2]} 5... Ba5 {[%clk 0:04:47.7]} 6. O-O {[%clk 0:04:49.8]} 6... O-O
{[%clk 0:04:46.7]} 7. b4 {[%clk 0:04:42.4]} 7... Bb6 {[%clk 0:04:45.8]} 8. a4
{[%clk 0:04:41.9]} 8... a6 {[%clk 0:04:44.6]} 9. h3 {[%clk 0:04:35.8]} 9... Ne7
{[%clk 0:04:39.1]} 10. Be3 {[%clk 0:04:26.6]} 10... Bxe3 {[%clk 0:04:36.3]} 11.
fxe3 {[%clk 0:04:26.5]} 11... Ng6 {[%clk 0:04:35.3]} 12. Nbd2 {[%clk 0:04:16.1]}
12... d6 {[%clk 0:04:33.7]} 13. b5 {[%clk 0:03:56.7]} 13... axb5 {[%clk
0:04:32.1]} 14. axb5 {[%clk 0:03:56]} 14... Rxa1 {[%clk 0:04:30]} 15. Qxa1
{[%clk 0:03:55.9]} 15... Bd7 {[%clk 0:04:28.6]} 16. Rb1 {[%clk 0:03:32.5]} 16...
Qc8 {[%clk 0:04:23.3]} 17. Bd5 {[%clk 0:03:21.8]} 17... Bxh3 {[%clk 0:04:11.2]}
18. gxh3 {[%clk 0:03:19]} 18... Qxh3 {[%clk 0:04:10.4]} 19. Rf1 {[%clk
0:02:57.5]} 19... Ng4 {[%clk 0:04:03.5]} 20. Qe1 {[%clk 0:02:46.7]} 20... Rb8
{[%clk 0:03:42.4]} 21. Rf2 {[%clk 0:02:44.8]} 21... Nxf2 {[%clk 0:03:32.8]} 22.
Qxf2 {[%clk 0:02:44.7]} 22... Ra8 {[%clk 0:03:28]} 23. Bxf7+ {[%clk 0:02:21.7]}
23... Kh8 {[%clk 0:03:17.9]} 24. Bxg6 {[%clk 0:02:04.3]} 24... Ra1+ {[%clk
0:03:12.3]} 25. Ne1 {[%clk 0:02:03.5]} 25... Qg4+ {[%clk 0:03:06]} 26. Kf1
{[%clk 0:01:55.5]} 26... Qh3+ {[%clk 0:02:56.4]} 27. Ke2 {[%clk 0:01:44.2]}
27... Qg4+ {[%clk 0:02:53]} 28. Kf1 {[%clk 0:01:10.8]} 28... hxg6 {[%clk
0:02:46.8]} 29. Qf8+ {[%clk 0:00:59]} 29... Kh7 {[%clk 0:02:45.4]} 30. Qf3
{[%clk 0:00:30.1]} 30... Qxf3+ {[%clk 0:02:40.7]} 31. Nxf3 {[%clk 0:00:29.9]}
31... Rb1 {[%clk 0:02:38.9]} 32. c4 {[%clk 0:00:28.3]} 32... Kh6 {[%clk
0:02:30.9]} 33. Kg2 {[%clk 0:00:18.8]} 33... Kh5 {[%clk 0:02:29]} 34. Kg3 {[%clk
0:00:16.1]} 34... g5 {[%clk 0:02:26.5]} 35. Ng2 {[%clk 0:00:09.4]} 35... Rb3
{[%clk 0:02:22.2]} 36. Nfe1 {[%clk 0:00:07.6]} 36... Rb2 {[%clk 0:02:15.8]} 37.
d4 {[%clk 0:00:05.8]} 37... Rb1 {[%clk 0:02:07.1]} 38. d5 {[%clk 0:00:02.6]}
38... Rc1 {[%clk 0:02:05.2]} 39. Kf3 {[%clk 0:00:00.6]} 39... Rxc4 {[%clk
0:02:03.6]} 0-1

[Event "Live Chess"]
[Site "Chess.com"]
[Date "2023.05.20"]
[Round "-"]
[White "TDCMF"]
[Black "ACx04"]
[Result "1-0"]
[WhiteElo "350"]
[BlackElo "423"]
[TimeControl "300"]
[EndTime "10:37:40 PDT"]
[Termination "TDCMF won by checkmate"]

1. e4 {[%clk 0:04:57.5]} 1... e5 {[%clk 0:04:58.4]} 2. Nf3 {[%clk 0:04:54.6]}
2... Nc6 {[%clk 0:04:56.9]} 3. Bc4 {[%clk 0:04:49.9]} 3... h6 {[%clk 0:04:54.9]}
4. Nc3 {[%clk 0:04:41]} 4... Bc5 {[%clk 0:04:50.8]} 5. O-O {[%clk 0:04:35.1]}
5... Nf6 {[%clk 0:04:49.1]} 6. h3 {[%clk 0:04:32.2]} 6... Nd4 {[%clk 0:04:47.7]}
7. Nxe5 {[%clk 0:04:20.5]} 7... d6 {[%clk 0:04:37.6]} 8. Nxf7 {[%clk 0:04:15.6]}
8... Be6 {[%clk 0:04:32.3]} 9. Nxd8 {[%clk 0:04:00.4]} 9... Rxd8 {[%clk
0:04:30]} 10. Bxe6 {[%clk 0:03:48.9]} 10... Nxe6 {[%clk 0:04:27.5]} 11. b3
{[%clk 0:03:37.1]} 11... a6 {[%clk 0:04:24.5]} 12. Bb2 {[%clk 0:03:35.3]} 12...
O-O {[%clk 0:04:22.5]} 13. Qe2 {[%clk 0:03:23.3]} 13... b5 {[%clk 0:04:19.1]}
14. a3 {[%clk 0:03:16.4]} 14... b4 {[%clk 0:04:16.3]} 15. Na4 {[%clk 0:03:01.8]}
15... Nd4 {[%clk 0:04:10]} 16. Bxd4 {[%clk 0:02:36.5]} 16... Bxd4 {[%clk
0:04:06.9]} 17. Qd3 {[%clk 0:02:29.1]} 17... Bxa1 {[%clk 0:04:04.8]} 18. Rxa1
{[%clk 0:02:25.8]} 18... bxa3 {[%clk 0:03:54.8]} 19. Rxa3 {[%clk 0:02:24]} 19...
g5 {[%clk 0:03:51.3]} 20. Qc3 {[%clk 0:02:18.4]} 20... Rc8 {[%clk 0:03:49.2]}
21. Qb4 {[%clk 0:02:12.5]} 21... Rfe8 {[%clk 0:03:43.4]} 22. Qb7 {[%clk
0:02:09.5]} 22... c5 {[%clk 0:03:34.9]} 23. Qxa6 {[%clk 0:02:04.7]} 23... Nxe4
{[%clk 0:03:33.6]} 24. d3 {[%clk 0:01:59.8]} 24... Ra8 {[%clk 0:03:24.8]} 25.
Qb5 {[%clk 0:01:51.4]} 25... h5 {[%clk 0:03:09.7]} 26. Nb6 {[%clk 0:01:48.1]}
26... Rxa3 {[%clk 0:03:04.8]} 27. Qxe8+ {[%clk 0:01:46.3]} 27... Kg7 {[%clk
0:02:58.7]} 28. Qxe4 {[%clk 0:01:44.9]} 28... Ra1+ {[%clk 0:02:53.8]} 29. Kh2
{[%clk 0:01:43.4]} 29... Rf1 {[%clk 0:02:48.5]} 30. g3 {[%clk 0:01:39.7]} 30...
Rxf2+ {[%clk 0:02:47.2]} 31. Kg1 {[%clk 0:01:38]} 31... Rxc2 {[%clk 0:02:46.1]}
32. Qe7+ {[%clk 0:01:35.1]} 32... Kg6 {[%clk 0:02:44.4]} 33. Qxd6+ {[%clk
0:01:33.9]} 33... Kf5 {[%clk 0:02:42.4]} 34. d4 {[%clk 0:01:27.1]} 34... cxd4
{[%clk 0:02:38.7]} 35. Qxd4 {[%clk 0:01:26.1]} 35... Rc1+ {[%clk 0:02:36.8]} 36.
Kg2 {[%clk 0:01:24.3]} 36... Rc2+ {[%clk 0:02:35.7]} 37. Kf3 {[%clk 0:01:22.4]}
37... g4+ {[%clk 0:02:34.4]} 38. Ke3 {[%clk 0:01:20.2]} 38... gxh3 {[%clk
0:02:32.6]} 39. Qd3+ {[%clk 0:01:16.2]} 39... Kg4 {[%clk 0:02:22]} 40. Qxc2
{[%clk 0:01:14.9]} 40... Kxg3 {[%clk 0:02:20.4]} 41. Qf2+ {[%clk 0:01:11.6]}
41... Kg4 {[%clk 0:02:15.9]} 42. Qf3+ {[%clk 0:01:06.1]} 42... Kg5 {[%clk
0:02:14.3]} 43. Qxh3 {[%clk 0:01:04.9]} 43... Kh6 {[%clk 0:02:12.4]} 44. Qe6+
{[%clk 0:00:58.1]} 44... Kg5 {[%clk 0:02:10.9]} 45. Kf3 {[%clk 0:00:57.3]} 45...
Kh4 {[%clk 0:02:10]} 46. Qf6+ {[%clk 0:00:49]} 46... Kh3 {[%clk 0:02:07.5]} 47.
Qf5+ {[%clk 0:00:45.5]} 47... Kh2 {[%clk 0:02:06.2]} 48. Kf2 {[%clk 0:00:43.7]}
48... Kh1 {[%clk 0:02:03.8]} 49. Qxh5# {[%clk 0:00:42.3]} 1-0